bitfinex/quotes_BTCUSD_20251208
["timestamp","ask_amount","ask_price","bid_price","bid_amount"]
[1765204724866,0.4,90865.0,90864.0,0.32876917]
[1765204725065,0.01646822,90930.0,90896.0,0.01100158]
[1765204725262,0.01646822,90930.0,90900.0,0.48368904]
[1765204725263,0.00199998,90910.0,90900.0,0.48368904]
[1765204725435,0.02213248,90908.0,90901.0,0.01100097]
[1765204725643,0.02213248,90908.0,90900.0,0.47268794]
[1765204725852,0.02213248,90901.0,90900.0,0.4730743]
[1765204726052,0.02213248,90901.0,90900.0,0.00038636]
[1765204726685,0.00199998,90910.0,90909.0,0.01100001]
[1765204726886,0.01646822,90923.0,90917.0,0.01099904]
[1765204726887,0.02213248,90919.0,90917.0,0.01099904]
[1765204727092,0.01,90937.0,90925.0,0.01099807]
[1765204727093,0.02213248,90926.0,90925.0,0.01099807]
[1765204727304,0.02213248,90926.0,90925.0,0.02899807]
[1765204727508,0.01,90937.0,90935.0,0.21993547]
[1765204727718,0.03213248,90937.0,90934.0,0.01099698]
[1765204727990,0.03213248,90937.0,90936.0,0.19266489]
[1765204728435,0.02213248,90936.0,90919.0,0.04293]
[1765204728647,0.02213248,90917.0,90915.0,0.018]
[1765204728867,0.02213248,90917.0,90914.0,0.0109994]
[1765204728868,0.02213248,90928.0,90921.0,0.01099855]
[1765204729079,0.02213248,90918.0,90916.0,0.018]
[1765204729297,0.02213248,90918.0,90915.0,0.23098469]
[1765204729505,0.02213248,90918.0,90917.0,0.018]
[1765204729958,0.02213248,90924.0,90920.0,0.01099868]
[1765204730169,0.02213248,90924.0,90921.0,0.01099855]
[1765204730387,0.02213248,90924.0,90921.0,0.09066]
[1765204730603,0.02213248,90928.0,90923.0,0.01099831]
[1765204730749,0.02213248,90928.0,90922.0,0.03699272]
[1765204730987,0.00199998,90930.0,90915.0,0.01099928]
[1765204731168,0.02213248,90919.0,90917.0,0.24897855]
[1765204731576,0.00199998,90930.0,90924.0,0.01099819]
[1765204731781,0.02224916,90936.0,90934.0,0.21993898]
[1765204731984,0.00011668,90936.0,90935.0,0.04858302]
[1765204732159,0.00011668,90936.0,90935.0,0.13924302]
[1765204733125,0.00011668,90936.0,90935.0,0.20176601]
[1765204733246,0.0004,90960.0,90959.0,0.21987928]
[1765204733446,0.0004,90960.0,90959.0,0.28561856]
[1765204733653,0.0004,90960.0,90959.0,0.37627856]
[1765204733858,0.0004,90960.0,90959.0,0.35827856]
[1765204734124,0.0004,90960.0,90959.0,0.37627856]
[1765204735116,0.0004,90960.0,90959.0,0.00038636]
[1765204735477,0.0004,90960.0,90959.0,0.00156428]
[1765204735943,0.02253248,90960.0,90959.0,0.00156428]
[1765204736114,0.0004,90960.0,90959.0,0.09222428]
[1765204736338,0.29699181,90960.0,90959.0,0.00038636]
[1765204736493,0.0871325,90960.0,90959.0,0.00038636]
[1765204736823,0.00083495,90960.0,90959.0,0.00038636]
[1765204737414,0.07711495,90960.0,90959.0,0.00038636]
[1765204737611,0.02296743,90960.0,90959.0,0.00038636]
[1765204737818,0.00083495,90960.0,90959.0,0.00038636]
[1765204738029,0.02296743,90960.0,90959.0,0.00038636]
[1765204738228,0.63799181,90960.0,90959.0,0.00038636]
[1765204738423,0.67013769,90960.0,90959.0,0.00038636]
[1765204739336,0.45026083,90960.0,90959.0,0.00038636]
[1765204740117,0.10512835,90960.0,90959.0,0.00038636]
[1765204740328,0.00083495,90960.0,90959.0,0.00038636]
[1765204740528,0.00083495,90960.0,90959.0,0.141371]
[1765204740529,0.0004,90960.0,90959.0,0.141371]
[1765204740752,0.0004,90960.0,90959.0,0.01952428]
[1765204740951,0.0004,90960.0,90959.0,0.00159581]
[1765204741148,0.07752,90960.0,90959.0,0.00159581]
[1765204741378,0.0004,90960.0,90959.0,0.00159581]
[1765204741582,0.02253248,90960.0,90959.0,0.00159581]
[1765204741742,0.02253248,90960.0,90959.0,0.10149373]
[1765204741743,0.0004,90960.0,90959.0,0.10149373]
[1765204741923,0.0004,90960.0,90959.0,0.16001724]
[1765204742331,0.59727256,91010.0,90959.0,0.16001724]
[1765204742332,0.01646822,91010.0,90994.0,0.21979471]
[1765204742575,0.01646822,91010.0,90994.0,0.22097263]
[1765204742771,0.01646822,91010.0,90994.0,0.00117792]
[1765204742772,0.0386007,90995.0,90994.0,0.00117792]
[1765204743193,0.23068973,91032.0,90994.0,0.00117792]
[1765204743194,0.00199998,91020.0,91015.0,0.01098719]
[1765204743425,0.00199998,91030.0,91013.0,0.01098744]
[1765204743639,0.00199998,91010.0,91002.0,0.02898876]
[1765204743949,0.0001171,91020.0,91012.0,0.01098756]
[1765204744160,0.0001171,91020.0,91019.0,0.21973434]
[1765204744268,0.0001171,91020.0,91019.0,0.23891226]
[1765204744674,0.0001171,91020.0,91019.0,0.31963226]
[1765204744922,0.0001171,91020.0,91014.0,0.01098732]
[1765204744923,0.00255203,91020.0,91002.0,0.01098876]
[1765204745267,0.0001171,91020.0,91019.0,0.26401434]
[1765204745467,0.0001171,91020.0,91019.0,0.04428]
[1765204745595,0.0001171,91020.0,91019.0,0.01917792]
[1765204745998,0.0001171,91020.0,91019.0,0.19236381]
[1765204746508,0.0001171,91020.0,91019.0,0.2548868]
[1765204747119,0.01646822,91048.0,91019.0,0.2548868]
[1765204747120,1.02213248,91050.0,91049.0,0.21966194]
[1765204747357,1.02224945,91050.0,91049.0,0.018]
[1765204747584,1.02224945,91050.0,91049.0,0.21966194]
[1765204747896,1.0025519,91050.0,91028.0,0.09872]
[1765204748110,0.00199998,91030.0,91007.0,0.09872]
[1765204748273,0.00199998,91030.0,91000.0,0.00099999]
[1765204748274,0.02213248,91037.0,91036.0,0.01098466]
[1765204748932,0.02213248,91035.0,91027.0,0.01098575]
[1765204749057,0.00199998,91030.0,91019.0,0.01098671]
[1765204749257,0.00043495,91039.0,91027.0,0.01098575]
[1765204749496,0.00043495,91039.0,91024.0,0.23070838]
[1765204749497,0.02213248,91024.0,91023.0,0.01098623]
[1765204749756,0.02213248,91022.0,91020.0,0.03161602]
[1765204750183,0.02213248,91027.0,91020.0,0.03161602]
[1765204750440,0.00199998,91020.0,91008.0,0.018]
[1765204750671,0.02213248,90999.0,90996.0,0.00117792]
[1765204750816,0.02213248,91000.0,90999.0,0.23077002]
[1765204751020,0.00199998,91010.0,90999.0,0.23077002]
[1765204751021,0.00199998,91010.0,91006.0,0.01098828]
[1765204751348,0.00199998,91010.0,91008.0,0.21975885]
[1765204751349,0.02213248,91009.0,91008.0,0.21975885]
[1765204751582,0.00099999,91010.0,91003.0,0.01098864]
[1765204751728,0.00099999,91010.0,90996.0,0.01956428]
[1765204751729,0.00099999,91010.0,90996.0,0.01255377]
[1765204751932,0.00199998,91010.0,90996.0,0.00038636]
[1765204752140,0.04567,90997.0,90996.0,0.00038636]
[1765204752355,0.06780248,90997.0,90996.0,0.00038636]
[1765204752589,0.08302,90997.0,90996.0,0.00038636]
[1765204752792,0.10515248,90997.0,90996.0,0.00038636]
[1765204753119,0.01646822,91008.0,90996.0,0.00038636]
[1765204753323,0.10515248,90997.0,90996.0,0.00038636]
[1765204754081,0.08302,90997.0,90996.0,0.00038636]
[1765204754439,0.11562458,90997.0,90996.0,0.00038636]
[1765204754645,0.03260458,90997.0,90996.0,0.00038636]
[1765204754847,0.02256743,90997.0,90996.0,0.00038636]
[1765204755072,0.10558743,90997.0,90996.0,0.00038636]
[1765204755283,0.11562446,90997.0,90996.0,0.00038636]
[1765204757674,0.33541192,90997.0,90996.0,0.00038636]
[1765204757879,0.33541192,90997.0,90992.0,0.0002359]
[1765204757880,0.323,90996.0,90992.0,0.0002359]
[1765204758038,0.00199998,90950.0,90944.0,0.01099577]
[1765204758240,0.01099263,90970.0,90947.0,0.01099541]
[1765204758241,0.04298,90955.0,90947.0,0.01099541]
[1765204758437,0.02213248,90956.0,90947.0,0.01099541]
[1765204758639,0.00199998,90960.0,90949.0,0.00126864]
[1765204758640,0.02213248,90950.0,90949.0,0.00126864]
[1765204759105,0.11300248,90950.0,90949.0,0.00126864]
[1765204759258,0.12345118,90950.0,90949.0,0.00126864]
[1765204759468,0.34335222,90950.0,90949.0,0.00126864]
[1765204759652,0.12345118,90950.0,90949.0,0.00126864]
[1765204760168,0.12388613,90950.0,90949.0,0.00126864]
[1765204760374,0.11971365,90950.0,90949.0,0.00126864]
[1765204760574,0.14184613,90950.0,90949.0,0.00126864]
[1765204760999,0.05097613,90950.0,90949.0,0.00126864]
[1765204761209,0.03301613,90950.0,90949.0,0.00126864]
[1765204761428,0.00082434,90950.0,90949.0,0.00126864]
[1765204761829,0.02295682,90950.0,90949.0,0.00126864]
[1765204762166,0.00038939,90950.0,90949.0,0.00244656]
[1765204762366,0.00038939,90950.0,90949.0,0.08752724]
[1765204762655,0.00038939,90950.0,90949.0,0.10194656]
[1765204762806,0.00038939,90950.0,90949.0,0.1239369]
[1765204763010,0.00038939,90950.0,90949.0,0.10194656]
[1765204763437,0.00038939,90950.0,90949.0,0.11864157]
[1765204763640,0.01006372,90984.0,90983.0,0.21982128]
[1765204763641,0.0321962,90984.0,90983.0,0.21982128]
[1765204763815,0.02213248,90980.0,90977.0,0.2198348]
[1765204764032,0.02213248,90978.0,90977.0,0.0001171]
[1765204764512,0.01006372,90984.0,90981.0,0.0109913]
[1765204764716,0.02213248,90982.0,90981.0,0.0109913]
[1765204764937,0.02213248,90979.0,90978.0,0.01099166]
[1765204765992,0.02213248,90982.0,90981.0,0.23081481]
[1765204766171,0.0386007,90985.0,90984.0,0.21981886]
[1765204766498,0.01646822,90985.0,90984.0,0.22099678]
[1765204766652,0.0386007,91008.0,91007.0,0.21976331]
[1765204766846,0.0386007,91008.0,91004.0,0.01098852]
[1765204766847,0.02213248,91005.0,91004.0,0.01098852]
[1765204767049,0.01646822,91028.0,91019.0,0.01098671]
[1765204767273,0.02654101,91028.0,91026.0,0.2197163]
[1765204767515,0.02213248,91025.0,91024.0,0.01098611]
[1765204767928,0.02213248,91025.0,91021.0,0.01098647]
[1765204768075,0.02213248,91022.0,91021.0,0.23071447]
[1765204768276,0.02213248,91022.0,91015.0,0.01098719]
[1765204768277,0.00043495,91022.0,91015.0,0.01098719]
[1765204768477,0.02213248,91016.0,91015.0,0.01110429]
[1765204768706,0.02213248,91016.0,91015.0,0.23084639]
[1765204768881,0.00043495,91022.0,91018.0,0.21973447]
[1765204769080,0.02213248,91016.0,91015.0,0.0001171]
[1765204769830,0.00043495,91022.0,91019.0,0.01098671]
[1765204769984,0.02213248,91022.0,91021.0,0.01098647]
[1765204770554,0.02213248,91047.0,91046.0,0.01098345]
[1765204770846,0.02213248,91047.0,91022.0,0.21972709]
[1765204770847,0.02213248,91031.0,91022.0,0.21972709]
[1765204770995,0.01646822,91029.0,91028.0,0.01098563]
[1765204771195,0.00043495,91040.0,91038.0,0.21968732]
[1765204771630,0.02213248,91039.0,91038.0,0.21968732]
[1765204771829,0.02213248,91039.0,91038.0,0.31305715]
[1765204772032,0.02213248,91039.0,91038.0,0.21968732]
[1765204772539,0.02213248,91039.0,91038.0,0.22086524]
[1765204772833,0.03220921,91047.0,91046.0,0.21966917]
[1765204773382,0.02213248,91047.0,91046.0,0.21966917]
[1765204773585,0.02213248,91047.0,91046.0,0.23065262]
[1765204773891,1.0,91050.0,91040.0,0.23066656]
[1765204773892,0.02213248,91042.0,91040.0,0.23066656]
[1765204774114,0.02252235,91042.0,91040.0,0.23066656]
[1765204774894,0.00038987,91042.0,91041.0,0.08591698]
[1765204775126,0.00038987,91042.0,91041.0,0.11166198]
[1765204775725,0.00038987,91042.0,91041.0,0.17418497]
[1765204776001,1.0,91050.0,91049.0,0.28218493]
[1765204776203,4.008e-05,91090.0,91065.0,0.21962334]
[1765204776412,4.008e-05,91090.0,91065.0,0.23872126]
[1765204776647,1.89957,91066.0,91065.0,0.39076838]
[1765204777114,1.89957,91066.0,91065.0,0.4072366]
[1765204777409,1.89957,91066.0,91065.0,0.43537137]
[1765204777610,1.89957,91066.0,91065.0,0.37284838]
[1765204777957,1.89957,91066.0,91065.0,0.39076838]
[1765204778166,1.89957,91066.0,91065.0,0.27334838]
[1765204778364,1.90000495,91066.0,91063.0,0.0109814]
[1765204778564,0.02213248,91064.0,91063.0,0.0109814]
[1765204778767,1.90000495,91066.0,91063.0,0.0109814]
[1765204779001,1.90000495,91066.0,91065.0,0.21962334]
[1765204779209,1.92213743,91066.0,91065.0,0.26684359]
[1765204779566,1.90000495,91066.0,91065.0,0.04722025]
[1765204779760,1.92213743,91066.0,91065.0,0.04722025]
[1765204780118,1.92213743,91066.0,91062.0,0.01098152]
[1765204780119,0.02213248,91063.0,91062.0,0.01098152]
[1765204780535,0.02213248,91063.0,91030.0,0.4404137]
[1765204780536,0.02213248,91056.0,91055.0,0.01098237]
[1765204780711,1.89957,91066.0,91065.0,0.21962334]
[1765204781067,1.89957,91066.0,91058.0,0.01098201]
[1765204781195,0.02213248,91057.0,91056.0,0.230626]
[1765204781398,0.02213248,91057.0,91056.0,0.01098225]
[1765204781584,0.00199998,91050.0,91044.0,0.21967259]
[1765204781783,0.00199998,91060.0,91053.0,0.21965229]
[1765204782009,0.00243493,91060.0,91052.0,0.01098273]
[1765204782191,0.00243493,91060.0,91050.0,0.23064042]
[1765204782386,0.02213248,91051.0,91050.0,0.01098297]
[1765204782605,0.02213248,91049.0,91048.0,0.23064534]
[1765204782889,0.00243493,91060.0,91059.0,0.21963781]
[1765204782890,0.00043495,91060.0,91059.0,0.21963781]
[1765204783094,0.02256743,91060.0,91059.0,0.21963781]
[1765204783246,0.00243493,91060.0,91054.0,0.01098249]
[1765204783450,0.02213248,91056.0,91055.0,0.01098237]
[1765204783809,0.02256743,91056.0,91055.0,0.01098237]
[1765204784010,0.00043495,91056.0,91053.0,0.01098261]
[1765204784230,0.02213248,91054.0,91053.0,0.01098261]
[1765204784445,0.00043495,91054.0,91048.0,0.23064648]
[1765204784645,0.00043495,91054.0,91046.0,0.01098345]
[1765204784646,0.02213248,91047.0,91046.0,0.01098345]
[1765204784847,0.02213248,91052.0,91051.0,0.01098285]
[1765204785069,0.02213248,91048.0,91047.0,0.23064901]
[1765204785268,0.00043495,91054.0,91047.0,0.23064901]
[1765204785269,0.02256743,91054.0,91053.0,0.21965229]
[1765204786106,0.02213248,91052.0,91051.0,0.23063849]
[1765204786271,0.02213248,91050.0,91049.0,0.01098309]
[1765204786798,0.00043495,91054.0,91049.0,0.01098309]
[1765204786799,0.02213248,91052.0,91051.0,0.01098285]
[1765204787000,0.0386007,91061.0,91060.0,0.2196354]
[1765204787153,0.0386007,91061.0,91060.0,0.26575949]
[1765204787363,1.89957,91066.0,91065.0,0.21962334]
[1765204787578,1.92170248,91066.0,91065.0,0.21962334]
[1765204788552,1.92170248,91066.0,91065.0,0.31260334]
[1765204789169,1.89957,91066.0,91065.0,0.31378126]
[1765204789381,1.89957,91066.0,91065.0,0.42074771]
[1765204790937,1.89957,91066.0,91065.0,0.4832707]
[1765204791135,1.89957,91066.0,91065.0,0.5011507]
[1765204791486,1.89957,91066.0,91065.0,0.31260334]
[1765204791628,1.89957,91066.0,91065.0,0.21962334]
[1765204792059,1.92170248,91066.0,91065.0,0.21962334]
[1765204792443,1.92170248,91066.0,91051.0,0.01098285]
[1765204792444,0.00199998,91060.0,91051.0,0.01098285]
[1765204792779,0.02213248,91059.0,91058.0,0.2196387]
[1765204793794,1.89957,91066.0,91064.0,0.21962575]
[1765204794018,1.89957,91066.0,91065.0,0.15656]
[1765204794705,1.89957,91066.0,91065.0,0.15773792]
[1765204794846,1.89957,91066.0,91065.0,0.2662172]
[1765204795285,1.89957,91066.0,91065.0,0.08263792]
[1765204795286,1.92170248,91066.0,91065.0,0.08263792]
[1765204795604,1.92170248,91066.0,91064.0,0.21962575]
[1765204795605,0.02213248,91065.0,91064.0,0.21962575]
[1765204795800,0.02213248,91065.0,91064.0,0.23750575]
[1765204796004,0.02213248,91065.0,91064.0,0.30108575]
[1765204796162,0.02213248,91065.0,91064.0,0.39406575]
[1765204796363,0.0386007,91065.0,91064.0,0.32702837]
[1765204797215,0.02213248,91062.0,91061.0,0.01098164]
[1765204797392,0.02213248,91054.0,91053.0,0.02886261]
[1765204797710,0.02213248,91054.0,91053.0,0.2485149]
[1765204797854,0.02213248,91054.0,91051.0,0.23894462]
[1765204798055,0.00199998,91060.0,91052.0,0.04586066]
[1765204798056,0.02213248,91053.0,91052.0,0.04586066]
[1765204798464,0.02213248,91044.0,91043.0,0.01098382]
[1765204798665,0.01054666,91053.0,91047.0,0.21966639]
[1765204798666,0.03224419,91049.0,91047.0,0.21966639]
[1765204798886,0.00043495,91053.0,91046.0,0.01098345]
[1765204798887,0.00043495,91053.0,91051.0,0.21965711]
[1765204799093,0.00043495,91053.0,91044.0,0.1039637]
[1765204799094,0.02213248,91045.0,91044.0,0.0109837]
[1765204799337,0.02213248,91044.0,91043.0,0.00011689]
[1765204799527,0.03224778,91044.0,91043.0,0.00011689]
[1765204799763,0.0101153,91044.0,91043.0,0.15633481]
[1765204799943,0.0101153,91044.0,91043.0,0.26203807]
[1765204800411,0.01646822,91064.0,91048.0,0.21966435]
[1765204800412,0.0101153,91049.0,91048.0,0.21966435]
[1765204800617,0.0386007,91064.0,91063.0,0.21962816]
[1765204800818,0.04873136,91064.0,91063.0,0.21962816]
[1765204801023,0.03226314,91064.0,91063.0,0.21962816]
[1765204801235,0.01013066,91064.0,91063.0,0.3999839]
[1765204801443,0.01013066,91064.0,91063.0,0.40116182]
[1765204801655,0.00099999,91070.0,91065.0,0.21962334]
[1765204801874,0.01746821,91080.0,91065.0,0.21962334]
[1765204801875,0.01646822,91080.0,91065.0,0.28439126]
[1765204802032,0.0184682,91080.0,91065.0,0.48432054]
[1765204802238,0.0184682,91080.0,91060.0,0.01788]
[1765204802239,2.02424747,91066.0,91043.0,0.00011689]
[1765204802467,0.00199998,91050.0,91043.0,0.00011689]
[1765204802636,0.01014252,91049.0,91048.0,0.21966435]
[1765204802847,0.032275,91049.0,91048.0,0.21966435]
[1765204803193,0.03270995,91049.0,91048.0,0.06920675]
[1765204803403,0.02213248,91044.0,91043.0,0.00011689]
[1765204803540,0.03270995,91044.0,91043.0,0.00011689]
[1765204803735,0.03270855,91044.0,91043.0,0.00011689]
[1765204803939,0.34809255,91044.0,91043.0,0.00011689]
[1765204804160,0.02213248,91034.0,91026.0,0.01098587]
[1765204804362,0.01014112,91033.0,91032.0,0.23068701]
[1765204804556,0.01014112,91033.0,91032.0,0.23186493]
[1765204804757,0.02213248,91041.0,91037.0,0.01098454]
[1765204805053,0.01013864,91040.0,91039.0,0.23067027]
[1765204805256,0.02213248,91035.0,91032.0,0.00117792]
[1765204805465,0.02213248,91035.0,91001.0,0.01098889]
[1765204805466,0.01690317,91033.0,91001.0,0.01098889]
[1765204805662,0.01690317,91033.0,90984.0,0.01670416]
[1765204805663,0.22014997,91027.0,90986.0,0.21981226]
[1765204805845,0.02213248,91006.0,91005.0,0.0109884]
[1765204806051,0.03227112,91006.0,91005.0,0.23087364]
[1765204806245,0.03227112,91006.0,91005.0,0.04628089]
[1765204806471,0.03227112,91006.0,91005.0,0.0001171]
[1765204806472,0.12786112,91006.0,91005.0,0.0001171]
[1765204806871,0.02801864,91006.0,91005.0,0.0001171]
[1765204807072,0.05015112,91006.0,91005.0,0.0001171]
[1765204807435,0.12360864,91006.0,91005.0,0.0001171]
[1765204807823,0.14574112,91006.0,91005.0,0.0001171]
[1765204808025,0.02801864,91006.0,91005.0,0.0001171]
[1765204808435,0.05015112,91006.0,91005.0,0.0001171]
[1765204808649,0.01013864,91006.0,91005.0,0.00129502]
[1765204808835,0.02213248,91016.0,91015.0,0.23072887]
[1765204809196,0.01013864,91026.0,91025.0,0.21971985]
[1765204809441,0.00199998,91040.0,91032.0,0.21970296]
[1765204809648,0.01010089,91042.0,91039.0,0.23067036]
[1765204809790,0.01010089,91049.0,91034.0,0.0109849]
[1765204809985,0.78857634,91060.0,91046.0,0.21966771]
[1765204809986,0.01010089,91048.0,91046.0,0.21966771]
[1765204810189,0.01788,91055.0,91053.0,0.21965193]
[1765204810394,0.00199998,91070.0,91062.0,0.21963058]
[1765204810700,0.01646822,91080.0,91062.0,0.2208085]
[1765204810701,0.01010307,91065.0,91062.0,0.2208085]
[1765204810878,0.01685809,91063.0,91062.0,0.21963058]
[1765204811034,0.03899057,91063.0,91062.0,0.21963058]
[1765204811233,0.01685809,91063.0,91062.0,0.21963058]
[1765204811435,0.03899057,91063.0,91062.0,0.21963058]
[1765204811640,0.02213248,91051.0,91050.0,0.01098297]
[1765204812056,0.00199998,91060.0,91054.0,0.01098249]
[1765204812411,0.01010307,91061.0,91058.0,0.01098201]
[1765204812547,0.01010307,91061.0,91053.0,0.01098261]
[1765204812548,0.01010307,91062.0,91055.0,0.01098237]
[1765204812751,0.00043495,91059.0,91046.0,0.01098345]
[1765204812966,0.01010307,91058.0,91047.0,0.01098333]
[1765204813165,0.00043495,91058.0,91047.0,0.23064825]
[1765204813369,0.00043495,91058.0,91043.0,0.01098382]
[1765204813370,0.02213248,91044.0,91043.0,0.01098382]
[1765204813603,0.02213248,91044.0,91043.0,0.23066023]
[1765204813900,0.00199998,91050.0,91049.0,0.01098309]
[1765204813901,0.02213248,91050.0,91049.0,0.01098309]
[1765204814103,0.00243493,91050.0,91045.0,0.01098357]
[1765204814305,0.02213248,91048.0,91047.0,0.23065009]
[1765204814507,0.00043495,91050.0,91049.0,0.21966194]
[1765204814705,0.02256743,91050.0,91049.0,0.21966194]
[1765204815068,0.02213248,91050.0,91049.0,0.28885684]
[1765204815290,0.01010307,91059.0,91058.0,0.21964022]
[1765204815639,0.01010307,91065.0,91062.0,0.21963058]
[1765204815852,0.00038987,91063.0,91062.0,0.2208085]
[1765204816002,0.00038987,91063.0,91062.0,0.41878194]
[1765204816182,0.00038987,91063.0,91062.0,0.21963058]
[1765204816382,0.00038987,91063.0,91062.0,0.23751058]
[1765204816587,0.00038987,91063.0,91062.0,0.3340685]
[1765204816784,0.00038987,91063.0,91062.0,0.39659149]
[1765204817906,0.00038987,91063.0,91062.0,0.71959149]
[1765204818109,0.00038987,91063.0,91062.0,0.82807077]
[1765204818314,1.50969,91066.0,91065.0,0.28214633]
[1765204818517,1.50980687,91066.0,91065.0,0.28332425]
[1765204818722,1.50980687,91066.0,91065.0,0.37870425]
[1765204818919,1.50980687,91066.0,91065.0,0.71817247]
[1765204819118,1.50980687,91066.0,91065.0,0.77522821]
[1765204819724,1.50980687,91066.0,91065.0,0.75734821]
[1765204819946,1.50980687,91066.0,91065.0,0.77522821]
[1765204820512,1.50980687,91066.0,91065.0,0.373197]
[1765204820642,1.50980687,91066.0,91065.0,0.23864126]
[1765204820847,1.50980687,91066.0,91060.0,0.01098177]
[1765204820848,1.5323743,91066.0,91061.0,0.23061223]
[1765204821048,1.5323743,91066.0,91060.0,0.01098177]
[1765204821049,0.02213248,91061.0,91060.0,0.01098177]
[1765204821385,0.02213248,91061.0,91020.0,0.57865555]
[1765204821386,0.00199998,91050.0,91032.0,0.14083]
[1765204821565,0.00043495,91050.0,91048.0,0.21966327]
[1765204821764,0.02213248,91049.0,91048.0,0.21966327]
[1765204822151,0.02213248,91049.0,91039.0,0.0109843]
[1765204822152,0.02213248,91040.0,91039.0,0.0109843]
[1765204822465,0.02213248,91040.0,91037.0,0.01098454]
[1765204822466,0.02213248,91038.0,91037.0,0.01098454]
[1765204822648,0.02256743,91038.0,91037.0,0.01098454]
[1765204823186,0.02256743,91038.0,91035.0,0.2306805]
[1765204823333,0.02213248,91030.0,91029.0,0.01098551]
[1765204823539,0.02256743,91030.0,91029.0,0.01137538]
[1765204823732,0.02256743,91030.0,91029.0,0.0575543]
[1765204824152,0.02256743,91030.0,91029.0,0.00038987]
[1765204824374,0.13977495,91030.0,91029.0,0.00038987]
[1765204824589,0.16190743,91030.0,91029.0,0.00038987]
[1765204824766,0.02256743,91030.0,91029.0,0.00038987]
[1765204824950,0.11514743,91030.0,91029.0,0.00038987]
[1765204825154,0.02256743,91030.0,91029.0,0.00038987]
[1765204825771,0.00199998,91050.0,91037.0,0.01098454]
[1765204825973,0.02213248,91035.0,91034.0,0.0109849]
[1765204826179,0.00199998,91040.0,91033.0,0.01098502]
[1765204826365,0.00199998,91040.0,91030.0,0.23069138]
[1765204826562,0.02213248,91031.0,91030.0,0.23069138]
[1765204826786,0.02213248,91041.0,91040.0,0.01098418]
[1765204828891,0.0386007,91033.0,91032.0,0.21970296]
[1765204829099,0.01646822,91033.0,91031.0,0.21970438]
[1765204829466,0.01646822,91033.0,91029.0,0.30253028]
[1765204829467,0.02213248,91030.0,91029.0,0.00038987]
[1765204829686,0.02256743,91030.0,91029.0,0.00038987]
[1765204830412,0.02256743,91030.0,91029.0,0.03984783]
[1765204830805,0.00043495,91030.0,91029.0,0.00038987]
[1765204831022,0.11514743,91030.0,91029.0,0.00038987]
[1765204831570,0.44823299,91030.0,91029.0,0.00038987]
[1765204831982,0.0109849,91034.0,91029.0,0.00038987]
[1765204831983,0.02904428,91055.0,91054.0,0.01098249]
[1765204832130,0.04739,91070.0,91063.0,0.0109814]
[1765204832327,0.04739,91070.0,91054.0,0.01098249]
[1765204832328,0.09305,91065.0,91048.0,0.01098321]
[1765204832530,0.022196,91051.0,91050.0,0.01198297]
[1765204832831,0.09305,91065.0,91058.0,0.01098201]
[1765204832832,0.01792,91059.0,91058.0,0.01098201]
[1765204833031,0.01792,91063.0,91061.0,0.01098164]
[1765204833195,0.01792,91063.0,91058.0,0.23062223]
[1765204833196,0.022196,91060.0,91059.0,0.01098189]
[1765204833398,0.022196,91060.0,91059.0,0.03733891]
[1765204834029,0.00011685,91063.0,91062.0,0.21963058]
[1765204834245,0.00011685,91063.0,91062.0,0.22124345]
[1765204834858,0.53904617,91066.0,91065.0,0.21962334]
[1765204835054,0.53904617,91066.0,91065.0,0.6067592]
[1765204835055,0.32023269,91066.0,91065.0,0.6067592]
[1765204835229,1e-08,91066.0,91065.0,0.6067592]
[1765204835433,4.008e-05,91090.0,91065.0,0.6067592]
[1765204835434,4.008e-05,91090.0,91089.0,0.54256547]
[1765204835639,4.008e-05,91090.0,91089.0,0.60670133]
[1765204836180,0.17802122,91100.0,91099.0,0.60506436]
[1765204836382,1e-08,91100.0,91099.0,0.60667723]
[1765204837218,1e-08,91100.0,91099.0,2.95956923]
[1765204837464,1e-08,91100.0,91099.0,1.39007723]
[1765204837667,1e-08,91100.0,91099.0,3.00087723]
[1765204838090,1e-08,91100.0,91099.0,1.50447723]
[1765204838711,0.00027001,91120.0,91119.0,5.52031618]
[1765204838911,1e-08,91120.0,91119.0,5.53980905]
[1765204839222,1e-08,91120.0,91119.0,1.86630905]
[1765204839560,0.00049,91150.0,91119.0,1.86630905]
[1765204839561,0.00049,91150.0,91149.0,0.60494393]
[1765204839762,0.00060689,91150.0,91149.0,0.6244368]
[1765204840578,0.00060689,91150.0,91149.0,0.00161287]
[1765204840844,0.00060689,91150.0,91144.0,0.01097164]
[1765204841157,0.022196,91148.0,91147.0,0.01097128]
[1765204841306,0.022196,91145.0,91144.0,0.01097164]
[1765204841511,0.022196,91132.0,91131.0,0.01097321]
[1765204841716,0.00060689,91150.0,91135.0,0.01097273]
[1765204841930,0.022196,91132.0,91131.0,0.01097321]
[1765204842111,0.01646822,91136.0,91130.0,0.001]
[1765204842464,0.022196,91131.0,91130.0,0.001]
[1765204842676,0.022196,91129.0,91128.0,0.23044504]
[1765204843266,0.022196,91129.0,91128.0,0.01097357]
[1765204843474,0.01646822,91136.0,91133.0,0.23043179]
[1765204843687,0.022196,91131.0,91130.0,0.001]
[1765204844525,0.022196,91130.0,91127.0,0.21947359]
[1765204844745,0.022196,91121.0,91120.0,0.01097453]
[1765204844954,0.03866422,91121.0,91120.0,0.01097453]
[1765204845944,0.01646822,91136.0,91128.0,0.01097357]
[1765204846122,0.022196,91127.0,91126.0,0.2304501]
[1765204846469,0.022196,91131.0,91130.0,0.001]
[1765204846647,0.022196,91121.0,91120.0,0.001]
[1765204846811,0.022196,91103.0,91102.0,0.0109767]
[1765204847013,0.01097381,91126.0,91107.0,0.0109761]
[1765204847014,0.04551,91116.0,91107.0,0.0109761]
[1765204847231,0.04551,91116.0,91096.0,0.01097743]
[1765204847232,0.022196,91097.0,91096.0,0.01097743]
[1765204847399,0.03866422,91097.0,91096.0,0.23052477]
[1765204847898,0.04551,91116.0,91112.0,0.0109755]
[1765204848139,0.022196,91114.0,91113.0,0.01097538]
[1765204848314,0.022196,91111.0,91110.0,0.001]
[1765204848517,0.022196,91101.0,91100.0,0.23051384]
[1765204848720,0.0967,91114.0,91103.0,0.01097658]
[1765204848941,0.022196,91102.0,91101.0,0.01097682]
[1765204849146,0.022196,91112.0,91111.0,0.01097562]
[1765204849389,0.01788,91112.0,91100.0,0.001]
[1765204849586,0.01788,91112.0,91031.0,0.03333]
[1765204849587,0.4197,91111.0,91062.0,0.03333]
[1765204849804,0.323,91099.0,91090.0,0.001]
[1765204849970,0.01788,91098.0,91090.0,0.001]
[1765204850174,0.022196,91091.0,91090.0,0.001]
[1765204850390,0.01097743,91096.0,91090.0,0.001]
[1765204850590,0.0967,91097.0,91069.0,0.01098068]
[1765204850591,0.022196,91070.0,91069.0,0.01098068]
[1765204850803,0.022196,91065.0,91064.0,0.23060626]
[1765204850956,0.022196,91065.0,91064.0,0.23072315]
[1765204851570,0.022196,91091.0,91090.0,0.001]
[1765204851771,0.022196,91091.0,91077.0,0.23057177]